bitfinex/quotes_ETHUSD_20260120
["timestamp","ask_amount","ask_price","bid_price","bid_amount"]
[1768935880898,9.76637215,2995.4,2994.8,10.12491619]
[1768935881091,0.552,2995.4,2994.8,0.002]
[1768935881306,9.47987907,2995.3,2994.8,0.002]
[1768935881471,9.21437215,2995.1,2994.8,0.002]
[1768935885174,0.552,2995.4,2994.8,0.002]
[1768935885378,9.33490878,2995.3,2994.8,0.002]
[1768935885578,9.06930416,2995.3,2994.8,0.002]
[1768935887821,0.001,2995.4,2994.8,9.00494631]
[1768935888016,0.8167108,2995.3,2994.8,9.00494631]
[1768935888216,0.551,2995.3,2994.8,9.00494631]
[1768935888385,0.001,2995.4,2994.8,9.00494631]
[1768935888589,0.26578969,2995.3,2994.8,9.00494631]
[1768935888785,0.552,2995.4,2994.8,9.00494631]
[1768935888984,0.26578732,2995.3,2994.8,9.00494631]
[1768935889203,0.001,2995.4,2994.8,9.00494631]
[1768935889415,0.26588707,2995.3,2994.8,9.00494631]
[1768935889617,0.552,2995.4,2994.8,9.00494631]
[1768935889813,0.26585083,2995.3,2994.8,9.00494631]
[1768935889984,0.552,2995.4,2994.8,9.00494631]
[1768935890184,0.26584622,2995.3,2994.8,9.00494631]
[1768935890397,1.51413042,2995.4,2994.8,9.00494631]
[1768935890607,0.26593622,2995.3,2994.8,9.00494631]
[1768935890799,1.51413042,2995.4,2994.8,9.00494631]
[1768935891014,0.26593623,2995.3,2994.8,9.00494631]
[1768935891219,10.58343458,2995.4,2994.8,9.00494631]
[1768935891515,0.2659511,2995.3,2994.8,9.00494631]
[1768935892495,0.001,2995.2,2994.8,9.00494631]
[1768935893698,9.07030416,2995.2,2994.8,0.002]
[1768935893899,9.06930416,2995.0,2994.6,0.002]
[1768935894126,9.06930416,2994.8,2994.2,0.002]
[1768935894333,9.06930416,2994.6,2994.2,0.002]
[1768935894515,0.93351217,2994.5,2994.2,0.002]
[1768935894718,10.55381633,2994.5,2994.2,0.002]
[1768935894906,9.06930416,2994.3,2994.0,0.002]
[1768935895105,9.06930416,2994.3,2993.5,0.002]
[1768935895106,9.06930416,2994.1,2993.5,0.002]
[1768935895294,9.06930416,2993.9,2993.4,0.002]
[1768935895700,9.06930416,2993.7,2992.8,9.00294631]
[1768935895895,1.48445915,2993.6,2992.8,9.00294631]
[1768935897612,0.551,2993.7,2992.9,9.00294631]
[1768935898340,0.551,2993.7,2993.0,9.00294631]
[1768935898918,9.06930416,2993.9,2993.0,9.00294631]
[1768935899113,0.128,2995.0,2993.0,9.00294631]
[1768935899114,9.06930416,2994.7,2993.0,9.00294631]
[1768935899443,9.06930416,2994.5,2993.0,9.00294631]
[1768935899606,10.60877862,2994.4,2993.2,9.00294631]
[1768935899806,10.60877862,2994.4,2993.2,9.55394631]
[1768935900312,0.551,2994.3,2993.4,9.00294631]
[1768935900706,0.98847446,2994.4,2993.4,9.00294631]
[1768935901253,0.551,2994.6,2993.4,9.00294631]
[1768935901803,0.551,2994.7,2993.4,9.00294631]
[1768935902103,0.001,2995.2,2993.4,9.00294631]
[1768935902299,0.81560052,2995.1,2993.7,9.00294631]
[1768935902530,0.551,2995.1,2993.9,9.00294631]
[1768935902715,9.06930416,2995.0,2994.0,0.95539463]
[1768935903114,9.06930416,2995.0,2994.0,9.95834094]
[1768935903317,9.06930416,2995.0,2993.8,9.55394631]
[1768935903704,9.06930416,2994.8,2993.8,0.551]
[1768935904036,9.06930416,2994.6,2993.8,0.551]
[1768935904427,9.06930416,2994.6,2993.7,12.34329437]
[1768935904624,9.06930416,2994.6,2993.8,9.00294631]
[1768935904804,9.06930416,2994.6,2993.8,10.57152149]
[1768935906236,9.06930416,2994.6,2993.8,9.00294631]
[1768935907741,0.001,2995.2,2993.9,9.55394631]
[1768935907939,0.551,2995.0,2993.9,9.55394631]
[1768935908129,9.62030416,2995.0,2993.9,9.55394631]
[1768935908827,9.06930416,2994.8,2993.7,9.00294631]
[1768935909145,9.06930416,2994.6,2993.6,12.89637924]
[1768935909355,9.62030416,2994.5,2993.6,12.89637924]
[1768935910413,9.62030416,2994.5,2993.6,9.55594631]
[1768935910610,9.62030416,2994.5,2993.6,9.00494631]
[1768935910811,9.06930416,2994.3,2993.6,0.002]
[1768935911045,10.31019129,2994.2,2993.6,0.002]
[1768935911210,9.62030416,2994.1,2993.6,0.002]
[1768935912524,0.551,2994.1,2993.6,9.00494631]
[1768935913009,9.06930416,2994.7,2993.8,9.00294631]
[1768935913211,1.45793042,2994.6,2993.8,9.00294631]
[1768935913743,9.06930416,2994.7,2993.8,9.00294631]
[1768935914049,3.3385986,2995.3,2993.9,9.00294631]
[1768935914050,9.06930416,2994.9,2993.9,9.00294631]
[1768935914238,9.62130416,2995.2,2994.1,9.00294631]
[1768935914420,9.62130416,2995.2,2994.1,9.55394631]
[1768935914626,0.001,2995.2,2994.3,9.00294631]
[1768935915014,0.001,2995.2,2994.2,1.49143656]
[1768935915015,0.001,2995.2,2994.5,8.51182517]
[1768935915332,0.001,2995.2,2994.5,9.06282517]
[1768935917024,0.001,2995.2,2994.6,3.33934415]
[1768935917228,0.001,2995.2,2994.7,8.51182517]
[1768935917455,0.001,2995.2,2994.8,9.6969421]
[1768935917954,0.001,2995.4,2994.8,9.6969421]
[1768935918155,0.001,2995.4,2994.9,8.51182517]
[1768935918359,0.001,2995.8,2995.0,8.51182517]
[1768935919161,9.11532294,2996.6,2995.2,8.51182517]
[1768935919327,9.11532294,2996.8,2995.4,8.51182517]
[1768935919755,9.11532294,2997.3,2995.4,8.51182517]
[1768935919962,9.11532294,2997.5,2995.8,8.51182517]
[1768935920164,1.46263229,2997.3,2996.0,8.51182517]
[1768935920404,10.57795523,2997.3,2996.0,8.51182517]
[1768935921055,10.57795523,2997.3,2996.2,8.51182517]
[1768935921258,9.66632294,2997.2,2996.0,8.51182517]
[1768935921432,9.11532294,2997.0,2995.7,8.51182517]
[1768935921633,9.11532294,2997.0,2995.8,8.51182517]
[1768935922066,9.11532294,2997.0,2995.3,8.51182517]
[1768935922368,9.11532294,2996.8,2995.3,9.06282517]
[1768935922563,9.11532294,2996.6,2995.3,9.06282517]
[1768935923066,9.66632294,2996.5,2995.4,8.51182517]
[1768935923267,0.93798131,2996.7,2995.5,8.51182517]
[1768935923443,1.48898131,2996.7,2995.5,8.51182517]
[1768935924632,0.93798131,2996.7,2995.5,8.51182517]
[1768935924937,9.11532294,2997.1,2995.7,8.51182517]
[1768935925135,0.551,2997.2,2995.9,8.51182517]
[1768935925356,9.66732294,2997.4,2995.9,8.51182517]
[1768935926146,9.11532294,2997.3,2995.9,8.51182517]
[1768935927371,9.11532294,2997.3,2996.1,8.51182517]
[1768935927531,1.30035496,2997.2,2996.2,9.06282517]
[1768935927730,9.11532294,2997.1,2996.2,0.551]
[1768935928148,9.11532294,2997.1,2995.8,8.51182517]
[1768935928372,9.11532294,2997.1,2995.9,8.51182517]
[1768935928694,9.11532294,2997.1,2996.0,8.51182517]
[1768935928840,1.04156779,2997.0,2996.0,8.51182517]
[1768935929044,0.55,2996.9,2996.0,8.51182517]
[1768935930962,0.55,2996.9,2996.0,11.8495748]
[1768935931163,0.55,2996.9,2996.0,8.51182517]
[1768935932702,9.66532294,2996.9,2996.0,8.51182517]
[1768935933000,1.07068907,2996.8,2996.0,8.51182517]
[1768935934109,1.07068907,2996.8,2996.0,11.84955579]
[1768935934255,0.001,2997.1,2996.1,8.51182517]
[1768935934459,0.001,2997.1,2996.3,8.51182517]
[1768935934661,0.001,2997.1,2996.4,8.54519855]
[1768935934884,0.001,2997.1,2996.4,8.51182517]
[1768935935086,0.001,2997.1,2996.2,9.06182517]
[1768935935087,9.11632294,2997.1,2996.2,9.06182517]
[1768935935291,9.11632294,2997.1,2996.2,10.63555912]
[1768935935516,9.11632294,2997.1,2996.2,1.57373395]
[1768935935718,9.11632294,2997.1,2995.7,11.8498733]
[1768935936018,9.11532294,2997.0,2995.8,9.06182517]
[1768935936224,9.11532294,2997.0,2995.9,11.84970476]
[1768935936404,9.11532294,2997.0,2995.9,11.8496844]
[1768935936596,9.11532294,2996.8,2995.9,11.8496844]
[1768935937825,0.001,2997.1,2996.0,8.54128614]
[1768935938024,0.001,2997.1,2996.0,8.51182517]
[1768935938214,0.001,2997.1,2996.2,8.51182517]
[1768935938385,0.001,2997.1,2996.4,8.51182517]
[1768935938590,0.001,2997.1,2996.5,8.51182517]
[1768935940434,0.001,2997.1,2996.5,11.84904676]
[1768935940788,0.001,2997.1,2996.6,8.51182517]
[1768935941099,0.001,2996.9,2996.6,8.51182517]
[1768935941803,0.001,2996.9,2996.4,8.51182517]
[1768935941998,0.001,2996.9,2996.5,3.33714529]
[1768935942200,0.001,2996.9,2996.6,8.51182517]
[1768935942605,0.001,2997.1,2996.7,8.51182517]
[1768935942802,0.001,2997.4,2996.8,8.51182517]
[1768935943719,0.001,2997.4,2996.7,0.55]
[1768935943720,0.001,2997.4,2997.0,8.51182517]
[1768935943930,0.001,2997.4,2997.1,1.35094019]
[1768935944290,0.001,2997.6,2997.1,10.53026725]
[1768935944496,8.53584162,2998.2,2997.2,8.62932706]
[1768935945790,8.53584162,2998.2,2997.1,1.90094019]
[1768935945791,8.53584162,2998.2,2997.3,3.33633603]
[1768935946024,8.53584162,2998.2,2997.3,8.35520713]
[1768935946608,8.75207927,2998.5,2997.3,8.35520713]
[1768935946936,8.75207927,2998.8,2997.3,8.35520713]
[1768935947102,8.75207927,2998.7,2997.5,8.35520713]
[1768935947287,8.75207927,2998.7,2997.7,8.35520713]
[1768935947688,8.75307927,2998.9,2997.7,8.35520713]
[1768935948000,8.75307927,2998.9,2997.9,8.35520713]
[1768935948206,8.75307927,2998.9,2998.0,0.55]
[1768935948421,8.75307927,2998.9,2998.0,1.2944673]
[1768935948617,8.75307927,2998.9,2998.0,9.64967443]
[1768935948942,0.001,2998.9,2998.0,9.64967443]
[1768935949904,0.001,2998.9,2998.2,8.35520713]
[1768935950100,0.128,3000.3,2998.2,8.35520713]
[1768935950306,9.01755972,3000.2,2998.3,9.59512947]
[1768935950548,8.75207927,3000.0,2998.5,8.35520713]
[1768935951224,9.30207927,3000.0,2998.5,8.35520713]
[1768935952325,8.75207927,2999.9,2998.7,8.35520713]
[1768935952523,8.75207927,2999.7,2998.8,0.55]
[1768935952937,8.75307927,2999.7,2998.8,0.55]
[1768935953525,8.75307927,2999.7,2998.2,8.35520713]
[1768935953839,8.75307927,2999.7,2998.3,0.55]
[1768935954203,8.75207927,2999.5,2998.3,0.55]
[1768935954537,8.75207927,2999.5,2998.4,8.35520713]
[1768935954538,1.20858571,2999.4,2998.4,8.35520713]
[1768935954738,0.55,2999.5,2998.4,8.35520713]
[1768935954937,9.30207927,2999.6,2998.4,8.35520713]
[1768935955436,9.30207927,2999.6,2997.8,8.35520713]
[1768935955636,9.30207927,2999.6,2998.0,0.55]
[1768935956049,9.30207927,2999.6,2997.5,11.69126812]
[1768935956246,9.30207927,2999.6,2997.6,1.71912681]
[1768935956247,8.75207927,2999.3,2997.6,1.71912681]
[1768935956448,8.75207927,2999.3,2997.6,5.05507528]
[1768935956643,8.75207927,2999.3,2997.6,1.71912681]
[1768935958318,8.75207927,2998.8,2997.5,8.35520713]
[1768935958521,8.75207927,2998.8,2997.4,0.55]
[1768935958825,8.75207927,2998.6,2997.4,0.55]
[1768935959036,8.75207927,2998.4,2997.0,8.35520713]
[1768935959235,8.75207927,2998.4,2997.3,3.33625023]
[1768935959435,8.75207927,2998.6,2997.5,8.35520713]
[1768935959627,9.30207927,2998.6,2997.5,8.35520713]
[1768935959941,8.75207927,2998.4,2997.5,8.35520713]
[1768935960108,8.75207927,2998.4,2997.4,0.55]
[1768935960314,8.75207927,2998.4,2997.0,8.35520713]
[1768935960512,8.75207927,2998.2,2997.1,0.55]
[1768935960718,8.75207927,2998.0,2997.1,8.90520713]
[1768935960919,8.75207927,2998.0,2997.2,1.22418592]
[1768935962250,8.75207927,2998.0,2997.1,0.55]
[1768935962450,8.75207927,2998.0,2997.1,3.88654018]
[1768935962863,8.75207927,2998.0,2997.1,0.55]
[1768935963358,8.75207927,2998.0,2996.8,0.55]
[1768935963359,8.75207927,2997.9,2996.8,0.55]
[1768935963674,8.75207927,2997.7,2996.6,0.55]
[1768935963958,8.75207927,2997.7,2996.6,8.90520713]
[1768935963959,9.30207927,2997.7,2996.6,8.90520713]
[1768935964360,8.75207927,2997.6,2996.6,8.90520713]
[1768935964566,8.75207927,2997.6,2996.6,0.55]
[1768935965059,8.75207927,2997.6,2996.1,8.35520713]
[1768935965260,8.75207927,2997.4,2996.2,0.55]
[1768935965475,8.75207927,2997.2,2996.2,0.54400615]
[1768935965642,8.75207927,2997.2,2996.2,12.23670892]
[1768935965962,8.75207927,2997.2,2996.2,8.89921328]
[1768935966168,9.6822872,2997.1,2996.2,8.89921328]
[1768935966335,8.75207927,2997.1,2996.2,8.89921328]
[1768935967764,8.75207927,2997.1,2996.2,12.23676405]
[1768935968074,8.75207927,2997.1,2996.2,8.89921328]
[1768935969238,8.75207927,2997.1,2996.2,12.2367648]
[1768935969444,9.6822872,2997.1,2996.2,12.2367648]
[1768935969993,8.75207927,2997.4,2996.3,8.35520713]
[1768935970155,8.75207927,2997.7,2996.3,8.35520713]
[1768935970358,8.75207927,2998.0,2996.3,8.35520713]
[1768935970553,9.30207927,2998.0,2996.3,8.35520713]
[1768935970876,8.75207927,2997.8,2996.5,8.35520713]
[1768935971381,8.75207927,2997.8,2996.8,3.33689268]
[1768935971694,8.75207927,2997.8,2996.9,8.35520713]
[1768935971841,8.75207927,2997.8,2996.8,6.67378536]
[1768935971842,8.75207927,2998.2,2997.1,8.35520713]
[1768935972041,9.30207927,2998.2,2997.1,8.35520713]
[1768935972779,8.75207927,2998.2,2997.1,8.35520713]
[1768935972986,3.33446309,2999.0,2997.1,8.35520713]
[1768935972987,8.75207927,2999.0,2997.1,8.35520713]
[1768935973217,3.33438338,2999.1,2997.0,0.55]
[1768935973218,8.75207927,2998.8,2997.3,8.35520713]
[1768935973371,8.75207927,2998.8,2997.2,0.89052071]
[1768935973372,8.75207927,2998.8,2997.5,8.35520713]
[1768935973705,8.75207927,2998.8,2997.4,0.55]
[1768935973706,8.75207927,2998.8,2997.7,8.35520713]
[1768935974102,8.75207927,2998.8,2997.9,8.35520713]
[1768935975897,8.75207927,2998.8,2997.2,0.89052071]
[1768935975898,7.83657134,2998.7,2997.5,0.55]
[1768935976102,7.83657134,2998.5,2997.5,0.55]
[1768935976287,1.65886506,2998.6,2997.5,8.98473286]
[1768935976481,0.55,2998.5,2997.8,8.43473286]
[1768935976834,8.38657134,2998.5,2997.6,0.55]
[1768935977867,0.001,2998.3,2997.7,8.43473286]
[1768935978891,7.83757134,2998.3,2997.2,0.89052071]
[1768935979123,7.83757134,2998.3,2997.4,3.33619769]
[1768935979297,8.62132847,2998.3,2997.4,3.33619769]
[1768935979666,8.62132847,2998.3,2997.5,3.33611324]
[1768935980705,0.78475713,2998.3,2997.6,8.43473286]
[1768935980910,0.001,2998.3,2997.6,8.43473286]
[1768935981510,0.001,2998.3,2997.7,0.55]
[1768935981727,7.83757134,2998.3,2997.2,8.43473286]
[1768935982015,7.83757134,2998.3,2996.0,14.502]
[1768935982016,7.83657134,2998.1,2997.1,0.55]
[1768935982864,7.83657134,2998.1,2997.2,8.43473286]
[1768935983294,8.38657134,2998.1,2997.2,8.43473286]
[1768935984236,8.38657134,2998.1,2997.2,11.77116083]
[1768935984428,0.78375713,2998.2,2997.3,8.43473286]
[1768935984633,0.55,2998.2,2997.3,10.00049368]
[1768935985134,7.83757134,2998.3,2997.3,10.00049368]
[1768935985306,7.83757134,2998.3,2997.4,0.50685658]
[1768935985307,0.001,2998.3,2997.4,0.50685658]
[1768935985506,0.001,2998.3,2997.5,8.98473286]
[1768935985710,7.83657134,2999.2,2997.8,8.43473286]
[1768935986035,7.83657134,2999.2,2998.2,8.43473286]
[1768935986231,0.55,2999.3,2998.4,8.43473286]
[1768935986820,8.38657134,2999.3,2998.4,8.43473286]
[1768935987343,8.38657134,2999.3,2998.0,11.77023774]
[1768935987513,7.83657134,2999.1,2998.1,8.98473286]
[1768935988103,7.83657134,2999.1,2998.2,3.33533453]
[1768935988436,7.83657134,2999.1,2998.1,12.3201367]
[1768935988940,7.83657134,2999.1,2998.2,8.43473286]
[1768935989118,8.70409419,2999.1,2998.2,8.43473286]
[1768935989432,0.001,2998.9,2998.2,8.43473286]
[1768935990200,7.83757134,2999.7,2998.4,8.43473286]
[1768935990401,7.83757134,2999.7,2998.6,8.43473286]
[1768935990735,7.83757134,2999.7,2998.5,0.55]
[1768935990938,7.83657134,2999.5,2998.5,2.11551794]
[1768935991109,7.83657134,2999.5,2998.5,0.55]
[1768935991110,8.38657134,2999.5,2998.5,0.55]
[1768935991304,8.38657134,2999.5,2998.1,8.43473286]
[1768935991510,8.38657134,2999.5,2998.1,0.55]
[1768935992228,7.83657134,2999.3,2998.1,0.55]
[1768935993134,7.83657134,2999.3,2998.1,3.88544352]
[1768935993337,7.83657134,2999.1,2998.1,17.22119922]
[1768935993641,0.55,2999.0,2998.1,17.22119922]
[1768935994206,7.83657134,2999.1,2998.2,8.43473286]
[1768935994416,0.78375713,2999.6,2998.2,8.43473286]
[1768935994417,0.55,2999.3,2998.2,8.43473286]
[1768935996925,0.55,2999.3,2998.3,3.33522329]
[1768935997133,0.55,2999.3,2998.4,8.43473286]
[1768935997134,1.38865713,2999.3,2998.4,8.43473286]
[1768935997326,0.78375713,2999.6,2998.6,8.43473286]
[1768935997327,0.55,2999.6,2998.6,8.43473286]
[1768935997520,8.38757134,2999.7,2998.6,8.43473286]
[1768935998246,7.83657134,2999.6,2998.5,0.55]
[1768935998558,7.83657134,2999.6,2998.5,8.98473286]
[1768935998713,0.001,2999.7,2998.6,9.33320615]
[1768935998916,7.83657134,3000.0,2999.0,8.43473286]
[1768935999251,7.83657134,3000.3,2999.2,8.43473286]
[1768935999948,0.55,3000.4,2999.2,8.43473286]
[1768936000121,8.38657134,3000.4,2999.3,9.33320615]
[1768936001241,8.38657134,3000.4,2999.4,0.55]
[1768936001746,0.001,3000.0,2999.4,0.55]
[1768936003239,0.001,3000.0,2999.4,12.318683]
[1768936003817,0.001,3000.0,2999.5,8.43473286]
[1768936004137,0.001,3000.0,2999.6,1.56526831]
[1768936004819,0.001,3000.0,2999.4,12.04672681]
[1768936005721,0.001,3000.0,2999.4,8.71277667]
[1768936005921,0.001,3000.0,2999.4,12.04675431]
[1768936006118,0.001,3000.0,2999.4,8.71277667]
[1768936006322,0.001,3000.0,2999.4,12.04676867]
[1768936006522,0.001,3000.0,2999.5,1.53807847]
[1768936007721,0.001,3000.0,2999.6,3.33377783]
[1768936007924,0.001,3000.0,2999.5,9.18746922]
[1768936007925,0.001,3000.0,2999.5,12.52130701]
[1768936008735,7.62994082,3000.8,2999.7,7.64939075]
[1768936008943,7.62994082,3001.1,2999.9,7.64939075]
[1768936009138,0.55,3001.3,2999.9,7.64939075]
[1768936009139,7.62994082,3000.9,3000.0,0.55]
[1768936009656,7.62994082,3000.7,2999.6,7.64939075]
[1768936009844,7.62994082,3000.7,2999.6,0.55]
[1768936010249,7.62994082,3000.7,2999.7,0.03333666]
[1768936010429,7.62994082,3000.7,2999.7,7.68272741]
[1768936010638,7.62994082,3000.7,2999.7,7.64939075]
[1768936010840,0.81799408,3000.6,2999.7,7.64939075]
[1768936011169,3.33190581,3001.3,2999.7,7.64939075]
[1768936011170,7.62994082,3001.2,2999.7,7.64939075]
[1768936011968,7.62994082,3001.2,2999.5,7.64939075]
[1768936011969,7.62994082,3001.1,2999.5,7.64939075]
[1768936012170,6.66400723,3001.2,2999.0,3.33437559]
[1768936012171,7.62994082,3000.9,2999.0,3.33437559]
[1768936012362,7.62994082,3000.7,2999.3,3.33409987]
[1768936012562,7.62994082,3000.7,2999.2,10.98357495]
[1768936012753,7.62994082,3000.5,2999.3,8.19939075]
[1768936013090,7.62994082,3000.5,2999.4,8.19939075]
[1768936013301,7.62994082,3000.5,2999.7,10.98305651]
[1768936013444,0.55,3000.8,2999.8,7.64939075]
[1768936013445,8.17994082,3000.8,2999.8,7.64939075]
[1768936013645,7.62994082,3000.8,2999.9,0.55]
[1768936013858,0.76299408,3000.7,2999.9,11.53275342]
[1768936014058,0.001,3000.4,2999.9,11.53275342]
[1768936014263,0.001,3000.4,2999.9,11.53282774]
[1768936014448,0.001,3000.4,3000.0,7.64939075]
[1768936014858,0.001,3000.4,2999.8,3.33353602]
[1768936014859,0.001,3000.4,3000.1,0.55]
[1768936015745,0.001,3000.4,2999.8,3.33351687]
[1768936015973,0.001,3000.4,2996.7,0.05679161]
[1768936015974,7.63094082,3000.4,2999.9,0.55]
[1768936016281,7.63094082,3000.4,2999.6,0.55]
[1768936018080,7.63094082,3000.4,2999.6,3.88376562]
[1768936018250,7.63094082,3000.4,2999.6,3.88377383]
[1768936018450,7.63094082,3000.4,2999.6,0.55]
[1768936018451,8.3940349,3000.4,2999.6,0.55]
[1768936018661,8.3940349,3000.4,2999.6,3.88377479]
[1768936018862,8.3940349,3000.4,2999.6,0.55]
[1768936019057,8.3940349,3000.4,2999.6,3.88377088]
[1768936019378,8.3940349,3000.4,2999.6,0.55]
[1768936019865,0.83940349,3000.3,2999.6,3.88377631]
[1768936020481,0.001,3000.4,2999.6,11.53316706]
[1768936020688,7.63094082,3000.4,2999.6,0.55]
[1768936020989,7.63094082,3000.4,2999.1,7.64939075]
[1768936021285,0.001,3000.4,2999.6,7.64939075]
[1768936021475,7.63094082,3000.4,2999.4,3.33393868]
[1768936021664,8.3940349,3000.4,2999.3,7.64939075]
[1768936021863,8.3940349,3000.4,2999.4,0.55]
[1768936022589,8.3940349,3000.4,2999.1,3.83429687]
[1768936022590,7.62994082,3000.2,2999.1,0.5]
[1768936022883,7.62994082,3000.2,2999.2,0.55]
[1768936023458,0.001,3000.4,2999.2,0.55]
[1768936023662,0.001,3000.4,2999.6,7.64939075]
[1768936023974,0.001,3000.4,2999.8,7.64939075]
[1768936024575,0.001,3000.4,2999.9,3.33344444]
[1768936024886,0.001,3000.4,2999.8,10.98289738]
[1768936025189,0.001,3000.4,2999.9,0.55]
[1768936025391,0.001,3000.4,3000.0,0.55]
[1768936026062,0.001,3000.4,3000.1,0.55]
[1768936026063,7.63094082,3000.4,3000.1,0.55]
[1768936026462,7.63094082,3000.4,2999.6,0.002]
[1768936026690,7.63094082,3000.4,2999.7,0.55]
[1768936026895,0.76409408,3000.4,2999.7,8.19939075]
[1768936027072,0.001,3000.4,2999.7,8.19939075]
[1768936028369,7.63094082,3000.4,2999.6,0.002]
[1768936028581,7.63094082,3000.4,2999.7,0.55]
[1768936031598,7.63094082,3000.4,2999.7,3.88365031]
[1768936031808,8.3940349,3000.4,2999.7,0.55]
[1768936033918,8.3940349,3000.4,2999.6,0.002]
[1768936033919,7.62994082,3000.2,2999.6,0.002]
[1768936034104,7.62994082,3000.2,2999.6,0.552]
[1768936034414,8.3929349,3000.1,2999.6,0.552]
[1768936034623,0.001,3000.4,2999.7,7.64939075]
[1768936034824,0.001,3000.4,2999.7,10.98302103]
[1768936035113,0.001,3000.4,2999.8,7.53333173]
[1768936035312,0.001,3000.4,2999.8,9.0085946]
[1768936036508,7.46243712,3000.7,2999.8,9.0085946]
[1768936036509,7.46243712,3001.0,2999.8,1.47526287]
[1768936036722,0.26684148,3000.9,2999.9,7.53333173]
[1768936036954,7.46243712,3001.0,3000.1,7.53333173]
[1768936037128,7.46243712,3001.0,3000.2,0.55]
[1768936037339,0.26684127,3000.9,3000.2,0.55]
[1768936037524,7.46243712,3001.0,3000.2,0.55]
[1768936037701,0.26680575,3000.9,3000.3,0.55]
[1768936038033,8.20868083,3001.0,3000.3,0.55]
[1768936038329,0.001,3000.7,3000.3,0.55]
[1768936038536,0.001,3000.7,3000.0,0.5]
[1768936038537,7.46343712,3000.7,3000.0,0.5]
[1768936038831,7.46343712,3000.7,2999.6,3.33569922]
[1768936038832,7.46243712,3000.5,2999.8,0.55]
[1768936039016,7.46243712,3000.5,2999.6,0.002]
[1768936039216,7.46243712,3000.5,2999.7,0.55]
[1768936039832,7.46243712,3000.3,2999.6,0.002]
[1768936040039,0.26679104,3000.4,2998.5,7.53333173]
[1768936040040,7.46243712,3000.1,2998.5,7.53333173]
[1768936040212,0.82087808,3000.4,2999.0,7.53333173]
[1768936040213,7.72922816,3000.0,2999.0,7.53333173]
[1768936040416,7.46243712,3000.3,2999.3,7.53333173]
[1768936040613,1.15004936,3000.2,2999.3,7.53333173]
[1768936040936,7.62915496,3000.1,2999.3,7.53333173]
[1768936041119,0.88333152,3000.2,2999.3,10.86742096]
[1768936041601,0.88333152,3000.2,2999.4,7.53333173]
[1768936042244,7.46343712,3000.7,2999.6,7.53333173]
[1768936042930,7.46343712,3000.7,2999.5,0.55]
[1768936042931,7.46343712,3000.7,2999.8,7.53333173]
[1768936043127,7.46343712,3000.7,3000.0,7.53333173]
[1768936043128,0.001,3000.7,3000.0,7.53333173]
[1768936043328,0.001,3000.7,3000.1,8.3416649]
[1768936045347,0.001,3000.7,3000.2,10.86644285]
[1768936045546,0.001,3000.7,3000.1,0.80833317]
[1768936046449,0.001,3000.7,3000.1,3.33319744]
[1768936046743,7.46343712,3000.7,2999.7,0.55]
[1768936047443,7.46243712,3000.6,2999.4,7.53333173]
[1768936047643,7.46243712,3000.6,2999.3,0.55]
[1768936047847,7.46243712,3000.4,2998.9,7.53333173]
[1768936048256,7.46243712,3000.4,2998.9,0.55]
[1768936048571,7.46243712,3000.4,2999.1,0.5]
[1768936048776,7.46243712,3000.4,2998.8,0.55]
[1768936049084,7.46243712,3000.2,2998.5,10.86827119]
[1768936049272,7.46243712,3000.0,2998.6,3.33487285]
[1768936049470,7.46243712,2999.8,2998.5,3.33499102]
[1768936049779,7.46243712,2999.8,2999.1,0.002]
[1768936049984,7.46243712,2999.6,2999.1,0.002]
[1768936050278,7.46243712,2999.6,2998.4,0.552]
[1768936050279,8.01243712,2999.6,2998.4,0.002]
[1768936050478,8.01243712,2999.6,2998.4,0.552]
[1768936050646,7.46243712,2999.4,2998.4,0.552]
[1768936051679,7.46243712,2999.4,2998.2,0.002]
[1768936051680,7.46243712,2999.1,2998.2,0.002]
[1768936051849,6.48711791,2999.2,2998.1,0.002]
[1768936051850,7.46243712,2998.9,2998.1,0.002]
[1768936052595,7.46243712,2998.9,2997.5,7.53333173]
[1768936052804,0.55,2999.0,2997.0,0.002]
[1768936052805,7.46243712,2998.7,2997.2,7.53333173]
[1768936052993,7.46243712,2998.5,2997.4,0.55]
[1768936053197,8.01243712,2998.5,2997.4,0.55]
[1768936053503,7.46243712,2998.4,2997.4,0.55]
[1768936056406,3.33494213,2998.6,2997.4,0.55]
[1768936056407,0.55,2998.6,2997.7,7.53533173]
[1768936056606,0.80124371,2998.5,2997.7,7.53533173]
[1768936057278,0.80124371,2998.5,2997.7,0.002]
[1768936057279,8.26368083,2998.5,2997.7,0.002]
[1768936057902,7.46243712,2998.4,2997.1,7.53333173]
[1768936058098,7.46243712,2998.4,2997.1,11.41988986]
[1768936058762,7.46243712,2998.4,2997.1,8.08333173]
[1768936058964,7.46243712,2998.4,2997.4,10.86952375]
[1768936058965,0.82636808,2998.3,2997.4,10.86952375]
[1768936059194,0.82636808,2998.3,2997.5,7.53333173]
[1768936061309,8.2888052,2998.3,2997.3,7.53333173]
[1768936062021,8.2888052,2998.3,2997.4,7.53333173]
[1768936062195,0.82636808,2998.3,2997.4,7.53333173]
[1768936062516,0.55,2998.5,2997.7,7.53533173]
[1768936062813,0.001,2998.2,2997.7,0.002]
[1768936063528,7.46343712,2998.2,2997.7,0.002]
[1768936063820,0.74634371,2998.1,2997.7,0.002]
[1768936064818,0.001,2998.2,2997.7,0.002]
[1768936065023,7.13468045,2999.1,2997.9,7.59041006]
[1768936065229,0.55,2999.0,2997.9,7.59041006]
[1768936065516,9.66416154,2999.3,2997.8,0.55]
[1768936065517,7.13468045,2999.4,2998.1,7.59041006]
[1768936065688,0.55,2999.4,2998.1,7.59041006]
[1768936065878,1.42586808,2999.5,2998.1,7.59041006]
[1768936066079,0.87586808,2999.5,2998.3,7.59041006]
[1768936066283,9.66340564,3000.0,2998.2,6.67066906]
[1768936066284,7.13468045,3000.0,2998.5,7.59041006]
[1768936066583,0.551,3000.1,2998.5,7.59041006]
[1768936067006,0.551,3000.1,2998.8,7.59041006]
[1768936067007,0.001,3000.1,2998.8,7.59041006]
[1768936067208,0.001,3000.1,2999.0,7.59041006]
[1768936067616,0.001,3000.1,2999.2,7.59041006]
[1768936067812,0.001,3000.1,2999.4,7.59041006]
[1768936068008,0.001,3000.1,2999.6,10.92418159]
[1768936068217,0.001,3000.1,2999.7,7.59041006]